Workbook

Sheet Step 1 Instructions
A1: DO NOT CHANGE ANY VALUES EXCEPT IN CELLS COLORED IN GREY
A3: Step 1 - fill in the project names, and the scores in the gray boxes.
A10: Step 2 - move onto the next spreadsheet, the rest of the work on Step 1 is done for you

Sheet Step 1 Project Scores
A1: SCORES | C1: DO NOT CHANGE ANY VALUES EXCEPT IN CELLS COLORED IN GREY
C3: manage_species | D3: manage_spatial | E3: manage_uncertainty | F3: manage_currentpractices | G3: manage_adaptivemanagement | H3: pop_conservationneed A | I3: pop_conservationneed B | J3: pop_spatialscope | K3: pop_temporalscope | L3: hab_temporal | M3: hab_quantity | N3: hab_quality | O3: ecoprocess_spp | P3: ecoprocess_uncertainty | Q3: datasharing | R3: broaderimpacts | S3: exisitingpriorities | T3: partners | U3: leverage | V3: alignment | W3: objhyp | X3: response | Y3: targettaxa | Z3: surveydesign | AA3: stats | AB3: datamanagement | AC3: budget | AD3: timeline
A4: Project Name | C4: metric1 | D4: metric2 | E4: metric3 | F4: metric4 | G4: metric5 | H4: metric6a | I4: metric6b | J4: metric7 | K4: metric8 | L4: metric9 | M4: metric10 | N4: metric11 | O4: metric12 | P4: metric13 | Q4: metric14 | R4: metric15 | S4: metric16 | T4: metric17 | U4: metric18 | V4: metric19 | W4: metric20 | X4: metric21 | Y4: metric22 | Z4: metric23 | AA4: metric24 | AB4: metric25 | AC4: metric26 | AD4: metric27
A5: Project 1 | C5: 9 | D5: 6.25 | E5: 2 | F5: 2 | G5: 0 | H5: 186 | I5: 1054 | J5: 75 | K5: 5 | L5: 0 | M5: 2 | N5: 0 | O5: 0 | P5: 0 | Q5: 4 | R5: 0 | S5: 2 | T5: 3 | U5: 0 | V5: 0 | W5: 2 | X5: 3 | Y5: 3 | Z5: 3 | AA5: 2 | AB5: 3 | AC5: 2 | AD5: 2
A6: Project 2 | C6: 3 | D6: 28.2 | E6: 1 | F6: 0 | G6: 0 | H6: 0 | I6: 0 | J6: 0 | K6: 0 | L6: 0 | M6: 2 | N6: 0 | O6: 4 | P6: 1 | Q6: 0 | R6: 0 | S6: 3 | T6: 3 | U6: 0 | V6: 0 | W6: 2 | X6: 3 | Y6: 3 | Z6: 3 | AA6: 2 | AB6: 3 | AC6: 2 | AD6: 2
A7: Project 3 | C7: 8 | D7: 28.2 | E7: 2 | F7: 0 | G7: 0 | H7: 0 | I7: 0 | J7: 0 | K7: 0 | L7: 0 | M7: 2 | N7: 0 | O7: 5 | P7: 1 | Q7: 0 | R7: 2 | S7: 0 | T7: 0 | U7: 0 | V7: 1 | W7: 2 | X7: 3 | Y7: 3 | Z7: 3 | AA7: 2 | AB7: 1 | AC7: 2 | AD7: 2
A8: Project 4 | C8: 1 | D8: 6.25 | E8: 2 | F8: 0 | G8: 0 | H8: 0 | I8: 0 | J8: 0 | K8: 0 | L8: 0 | M8: 2 | N8: 0 | O8: 4 | P8: 1 | Q8: 0 | R8: 1 | S8: 3 | T8: 3 | U8: 4 | V8: 0 | W8: 1 | X8: 3 | Y8: 3 | Z8: 1 | AA8: 0 | AB8: 0 | AC8: 2 | AD8: 1
A9: Project 5 | C9: 4 | D9: 3.1 | E9: 2 | F9: 0 | G9: 0 | H9: 0 | I9: 0 | J9: 50 | K9: 2 | L9: 0 | M9: 2 | N9: 0 | O9: 0 | P9: 0 | Q9: 0 | R9: 1 | S9: 3 | T9: 3 | U9: 4 | V9: 1 | W9: 0 | X9: 3 | Y9: 3 | Z9: 2 | AA9: 0 | AB9: 0 | AC9: 2 | AD9: 1
A10: Project 6 | C10: 10 | D10: 0.062 | E10: 2 | F10: 0 | G10: 0 | H10: 0 | I10: 0 | J10: 10 | K10: 2 | L10: 0 | M10: 2 | N10: 0 | O10: 0 | P10: 0 | Q10: 0 | R10: 1 | S10: 0 | T10: 3 | U10: 3 | V10: 0 | W10: 0 | X10: 0 | Y10: 3 | Z10: 0 | AA10: 0 | AB10: 0 | AC10: 2 | AD10: 1
A11: Project 7 | C11: 52 | D11: 18.8 | E11: 0 | F11: 2 | G11: 0 | H11: 0 | I11: 0 | J11: 85 | K11: 12 | L11: 85 | M11: 8 | N11: 12 | O11: 8 | P11: 1 | Q11: 0 | R11: 0 | S11: 3 | T11: 3 | U11: 0 | V11: 0 | W11: 2 | X11: 0 | Y11: 1 | Z11: 3 | AA11: 2 | AB11: 2 | AC11: 0 | AD11: 2
A12: Project 8 | C12: 3 | D12: 18.8 | E12: 2 | F12: 1 | G12: 1 | H12: 0 | I12: 0 | J12: 14 | K12: 14 | L12: 14 | M12: 8 | N12: 14 | O12: 0 | P12: 0 | Q12: 0 | R12: 3 | S12: 1 | T12: 3 | U12: 0 | V12: 0 | W12: 2 | X12: 3 | Y12: 3 | Z12: 3 | AA12: 2 | AB12: 0 | AC12: 1 | AD12: 1
A13: Project 9 | C13: 9 | D13: 15.6 | E13: 2 | F13: 1 | G13: 0 | H13: 70 | I13: 140 | J13: 0 | K13: 0 | L13: 0 | M13: 2 | N13: 0 | O13: 0 | P13: 0 | Q13: 3 | R13: 0 | S13: 3 | T13: 2 | U13: 1 | V13: 0 | W13: 2 | X13: 3 | Y13: 3 | Z13: 1 | AA13: 2 | AB13: 1 | AC13: 1 | AD13: 2
A14: Project 10 | C14: 0 | D14: 0 | E14: 0 | F14: 0 | G14: 0 | H14: 0 | I14: 0 | J14: 0 | K14: 0 | L14: 0 | M14: 2 | N14: 0 | O14: 6 | P14: 2 | Q14: 1 | R14: 2 | S14: 3 | T14: 2 | U14: 2 | V14: 0 | W14: 0 | X14: 2 | Y14: 3 | Z14: 3 | AA14: 1 | AB14: 1 | AC14: 0 | AD14: 2
A15: Project 11 | C15: 0 | D15: 0 | E15: 0 | F15: 0 | G15: 0 | H15: 6 | I15: 102 | J15: 52 | K15: 15 | L15: 52 | M15: 8 | N15: 15 | O15: 3 | P15: 1 | Q15: 1 | R15: 0 | S15: 3 | T15: 3 | U15: 2 | V15: 2 | W15: 2 | X15: 1 | Y15: 3 | Z15: 3 | AA15: 1 | AB15: 2 | AC15: 0 | AD15: 1
A16: Project 12 | C16: 2 | D16: 15.6 | E16: 2 | F16: 1 | G16: 0 | H16: 0 | I16: 0 | J16: 0 | K16: 0 | L16: 0 | M16: 2 | N16: 0 | O16: 0 | P16: 0 | Q16: 0 | R16: 1 | S16: 3 | T16: 3 | U16: 3 | V16: 0 | W16: 1 | X16: 1 | Y16: 3 | Z16: 1 | AA16: 2 | AB16: 1 | AC16: 2 | AD16: 0
A17: Project 13 | C17: 0 | D17: 0 | E17: 0 | F17: 0 | G17: 0 | H17: 0 | I17: 12 | J17: 39 | K17: 2 | L17: 39 | M17: 8 | N17: 2 | O17: 7 | P17: 1 | Q17: 1 | R17: 0 | S17: 3 | T17: 3 | U17: 0 | V17: 0 | W17: 1 | X17: 0 | Y17: 1 | Z17: 0 | AA17: 2 | AB17: 1 | AC17: 1 | AD17: 1
A18: Project 14 | C18: 6 | D18: 15.6 | E18: 1 | F18: 1 | G18: 0 | H18: 0 | I18: 0 | J18: 0 | K18: 0 | L18: 0 | M18: 2 | N18: 0 | O18: 6 | P18: 1 | Q18: 1 | R18: 0 | S18: 3 | T18: 3 | U18: 0 | V18: 0 | W18: 1 | X18: 1 | Y18: 3 | Z18: 3 | AA18: 1 | AB18: 2 | AC18: 1 | AD18: 1
A19: Project 15 | C19: 23 | D19: 12.5 | E19: 2 | F19: 1 | G19: 1 | H19: 0 | I19: 0 | J19: 23 | K19: 3 | L19: 23 | M19: 8 | N19: 3 | O19: 1 | P19: 2 | Q19: 2 | R19: 0 | S19: 2 | T19: 3 | U19: 3 | V19: 2 | W19: 0 | X19: 3 | Y19: 1 | Z19: 1 | AA19: 2 | AB19: 3 | AC19: 2 | AD19: 1
A20: Project 16 | C20: 0 | D20: 0 | E20: 0 | F20: 0 | G20: 0 | H20: 0 | I20: 0 | J20: 100 | K20: 15 | L20: 100 | M20: 7 | N20: 15 | O20: 0 | P20: 0 | Q20: 3 | R20: 0 | S20: 3 | T20: 3 | U20: 5 | V20: 0 | W20: 2 | X20: 2 | Y20: 2 | Z20: 1 | AA20: 2 | AB20: 3 | AC20: 2 | AD20: 2
A21: Project 17 | C21: 2 | D21: 15.6 | E21: 2 | F21: 1 | G21: 1 | H21: 58 | I21: 290 | J21: 0 | K21: 0 | L21: 0 | M21: 8 | N21: 3 | O21: 0 | P21: 0 | Q21: 0 | R21: 0 | S21: 3 | T21: 2 | U21: 0 | V21: 0 | W21: 2 | X21: 3 | Y21: 1 | Z21: 0 | AA21: 1 | AB21: 0 | AC21: 2 | AD21: 1
A22: Project 18 | C22: 0 | D22: 0 | E22: 0 | F22: 0 | G22: 0 | H22: 0 | I22: 30 | J22: 0 | K22: 0 | L22: 0 | M22: 2 | N22: 0 | O22: 8 | P22: 1 | Q22: 1 | R22: 3 | S22: 3 | T22: 3 | U22: 5 | V22: 1 | W22: 2 | X22: 2 | Y22: 1 | Z22: 2 | AA22: 1 | AB22: 2 | AC22: 1 | AD22: 0
A23: Project 19 | C23: 8 | D23: 3.125 | E23: 1 | F23: 2 | G23: 0 | H23: 0 | I23: 0 | J23: 0 | K23: 0 | L23: 0 | M23: 2 | N23: 0 | O23: 8 | P23: 2 | Q23: 0 | R23: 0 | S23: 2 | T23: 3 | U23: 0 | V23: 0 | W23: 1 | X23: 1 | Y23: 3 | Z23: 2 | AA23: 0 | AB23: 1 | AC23: 0 | AD23: 1
A24: Project 20 | C24: 9 | D24: 15.6 | E24: 1 | F24: 2 | G24: 0 | H24: 0 | I24: 435 | J24: 76 | K24: 10 | L24: 76 | M24: 6 | N24: 10 | O24: 8 | P24: 2 | Q24: 1 | R24: 0 | S24: 3 | T24: 3 | U24: 3 | V24: 2 | W24: 1 | X24: 0 | Y24: 0 | Z24: 1 | AA24: 2 | AB24: 1 | AC24: 0 | AD24: 1
A25: Project 21 | C25: 0 | D25: 0 | E25: 0 | F25: 0 | G25: 0 | H25: 0 | I25: 0 | J25: 0 | K25: 0 | L25: 0 | M25: 2 | N25: 0 | O25: 8 | P25: 2 | Q25: 0 | R25: 1 | S25: 3 | T25: 3 | U25: 5 | V25: 1 | W25: 0 | X25: 2 | Y25: 3 | Z25: 1 | AA25: 0 | AB25: 3 | AC25: 1 | AD25: 2
A26: Project 22 | C26: 0 | D26: 0 | E26: 0 | F26: 0 | G26: 0 | H26: 16 | I26: 64 | J26: 0 | K26: 0 | L26: 0 | M26: 2 | N26: 0 | O26: 1 | P26: 2 | Q26: 4 | R26: 2 | S26: 2 | T26: 3 | U26: 5 | V26: 0 | W26: 1 | X26: 2 | Y26: 1 | Z26: 0 | AA26: 2 | AB26: 1 | AC26: 2 | AD26: 1
A27: Project 23 | C27: 9 | D27: 18.8 | E27: 2 | F27: 0 | G27: 0 | H27: 0 | I27: 0 | J27: 0 | K27: 0 | L27: 0 | M27: 2 | N27: 0 | O27: 0 | P27: 0 | Q27: 3 | R27: 0 | S27: 3 | T27: 3 | U27: 5 | V27: 0 | W27: 2 | X27: 1 | Y27: 2 | Z27: 1 | AA27: 1 | AB27: 1 | AC27: 0 | AD27: 1
A28: Project 24 | C28: 5 | D28: 6.25 | E28: 2 | F28: 0 | G28: 0 | H28: 0 | I28: 0 | J28: 0 | K28: 0 | L28: 0 | M28: 2 | N28: 0 | O28: 0 | P28: 0 | Q28: 0 | R28: 0 | S28: 3 | T28: 3 | U28: 5 | V28: 0 | W28: 0 | X28: 3 | Y28: 1 | Z28: 3 | AA28: 2 | AB28: 1 | AC28: 0 | AD28: 2
A29: Project 25 | C29: 9 | D29: 18.8 | E29: 2 | F29: 0 | G29: 0 | H29: 176 | I29: 308 | J29: 0 | K29: 0 | L29: 0 | M29: 2 | N29: 0 | O29: 8 | P29: 1 | Q29: 2 | R29: 2 | S29: 3 | T29: 3 | U29: 0 | V29: 0 | W29: 2 | X29: 1 | Y29: 3 | Z29: 2 | AA29: 1 | AB29: 1 | AC29: 2 | AD29: 2
A30: Project 26 | C30: 17 | D30: 18.8 | E30: 2 | F30: 1 | G30: 0 | H30: 0 | I30: 0 | J30: 0 | K30: 0 | L30: 0 | M30: 2 | N30: 0 | O30: 0 | P30: 0 | Q30: 3 | R30: 0 | S30: 3 | T30: 3 | U30: 4 | V30: 0 | W30: 2 | X30: 1 | Y30: 0 | Z30: 2 | AA30: 0 | AB30: 1 | AC30: 2 | AD30: 2
A31: Project 27 | C31: 0 | D31: 6.25 | E31: 2 | F31: 0 | G31: 0 | H31: 0 | I31: 0 | J31: 0 | K31: 0 | L31: 80 | M31: 2 | N31: 5 | O31: 0 | P31: 0 | Q31: 2 | R31: 2 | S31: 3 | T31: 3 | U31: 5 | V31: 0 | W31: 1 | X31: 2 | Y31: 3 | Z31: 1 | AA31: 0 | AB31: 0 | AC31: 0 | AD31: 0
A32: Project 28 | C32: 3 | D32: 6.25 | E32: 2 | F32: 0 | G32: 1 | H32: 0 | I32: 0 | J32: 0 | K32: 0 | L32: 0 | M32: 4 | N32: 5 | O32: 0 | P32: 0 | Q32: 4 | R32: 0 | S32: 3 | T32: 3 | U32: 4 | V32: 0 | W32: 2 | X32: 3 | Y32: 3 | Z32: 1 | AA32: 0 | AB32: 2 | AC32: 2 | AD32: 1
A33: Project 29 | C33: 9 | D33: 12.5 | E33: 2 | F33: 1 | G33: 0 | H33: 0 | I33: 0 | J33: 15 | K33: 12 | L33: 15 | M33: 8 | N33: 12 | O33: 0 | P33: 0 | Q33: 1 | R33: 0 | S33: 3 | T33: 3 | U33: 4 | V33: 0 | W33: 2 | X33: 1 | Y33: 0 | Z33: 2 | AA33: 1 | AB33: 1 | AC33: 1 | AD33: 2
A34: Project 30 | C34: 33 | D34: 18.8 | E34: 2 | F34: 0 | G34: 0 | H34: 0 | I34: 0 | J34: 0 | K34: 0 | L34: 0 | M34: 4 | N34: 2 | O34: 0 | P34: 0 | Q34: 0 | R34: 0 | S34: 1 | T34: 1 | U34: 0 | V34: 0 | W34: 0 | X34: 3 | Y34: 1 | Z34: 2 | AA34: 0 | AB34: 2 | AC34: 2 | AD34: 0
A35: Project 31 | C35: 4 | D35: 18.8 | E35: 1 | F35: 0 | G35: 0 | H35: 0 | I35: 0 | J35: 65 | K35: 4 | L35: 0 | M35: 4 | N35: 4 | O35: 0 | P35: 0 | Q35: 2 | R35: 0 | S35: 3 | T35: 2 | U35: 3 | V35: 0 | W35: 1 | X35: 0 | Y35: 1 | Z35: 1 | AA35: 2 | AB35: 2 | AC35: 1 | AD35: 1
A36: Project 32 | C36: 5 | D36: 3.125 | E36: 2 | F36: 2 | G36: 1 | H36: 6 | I36: 102 | J36: 40 | K36: 16 | L36: 40 | M36: 8 | N36: 16 | O36: 0 | P36: 0 | Q36: 2 | R36: 3 | S36: 3 | T36: 0 | U36: 4 | V36: 0 | W36: 0 | X36: 2 | Y36: 1 | Z36: 2 | AA36: 1 | AB36: 0 | AC36: 2 | AD36: 1
A37: Project 33 | C37: 14 | D37: 18.8 | E37: 2 | F37: 1 | G37: 0 | H37: 0 | I37: 0 | J37: 0 | K37: 0 | L37: 0 | M37: 5 | N37: 0 | O37: 0 | P37: 0 | Q37: 2 | R37: 0 | S37: 3 | T37: 2 | U37: 0 | V37: 0 | W37: 1 | X37: 3 | Y37: 0 | Z37: 2 | AA37: 2 | AB37: 3 | AC37: 0 | AD37: 0
A38: Project 34 | C38: 0 | D38: 0 | E38: 0 | F38: 0 | G38: 0 | H38: 0 | I38: 12 | J38: 100 | K38: 15 | L38: 100 | M38: 8 | N38: 15 | O38: 0 | P38: 0 | Q38: 2 | R38: 0 | S38: 3 | T38: 3 | U38: 4 | V38: 0 | W38: 2 | X38: 3 | Y38: 3 | Z38: 0 | AA38: 2 | AB38: 2 | AC38: 1 | AD38: 0
A39: Project 35 | C39: 8 | D39: 9.4 | E39: 1 | F39: 1 | G39: 1 | H39: 0 | I39: 0 | J39: 0 | K39: 0 | L39: 100 | M39: 6 | N39: 5 | O39: 8 | P39: 0 | Q39: 0 | R39: 0 | S39: 3 | T39: 3 | U39: 3 | V39: 0 | W39: 2 | X39: 2 | Y39: 0 | Z39: 1 | AA39: 2 | AB39: 0 | AC39: 1 | AD39: 1
A42: Weights | C42: metric1 | D42: metric2 | E42: metric3 | F42: metric4 | G42: metric5 | H42: metric6 | J42: metric7 | K42: metric8 | L42: metric9 | M42: metric10 | N42: metric11 | O42: metric12 | P42: metric13 | Q42: metric14 | R42: metric15 | S42: metric16 | T42: metric17 | U42: metric18 | V42: metric19 | W42: metric20 | X42: metric21 | Y42: metric22 | Z42: metric23 | AA42: metric24 | AB42: metric25 | AC42: metric26 | AD42: metric27
C43: manage_species | D43: manage_spatial | E43: manage_uncertainty | F43: manage_currentpractices | G43: manage_adaptivemanagement | H43: pop_conservationneed | J43: pop_spatialscope | K43: pop_temporalscope | L43: hab_temporal | M43: hab_quantity | N43: hab_quality | O43: ecoprocess_spp | P43: ecoprocess_uncertainty | Q43: datasharing | R43: broaderimpacts | S43: exisitingpriorities | T43: partners | U43: leverage | V43: alignment | W43: objhyp | X43: response | Y43: targettaxa | Z43: surveydesign | AA43: stats | AB43: datamanagement | AC43: budget | AD43: timeline
C44: 0.03 | D44: 0.03 | E44: 0.03 | F44: 0.03 | G44: 0.04 | H44: 0.03 | J44: 0.03 | K44: 0.02 | L44: 0.02 | M44: 0.02 | N44: 0.02 | O44: 0.03 | P44: 0.09 | Q44: 0.04 | R44: 0.04 | S44: 0.05 | T44: 0.05 | U44: 0.03 | V44: 0.03 | W44: 0.05 | X44: 0.04 | Y44: 0.04 | Z44: 0.05 | AA44: 0.05 | AB44: 0.04 | AC44: 0.04 | AD44: 0.03 | AE44: =SUM(C44:AD44) -> 1
A45: Weighted Utility
A46: Project Name | B46: Total Benefit | C46: metric1 | D46: metric2 | E46: metric3 | F46: metric4 | G46: metric5 | H46: metric6 | J46: metric7 | K46: metric8 | L46: metric9 | M46: metric10 | N46: metric11 | O46: metric12 | P46: metric13 | Q46: metric14 | R46: metric15 | S46: metric16 | T46: metric17 | U46: metric18 | V46: metric19 | W46: metric20 | X46: metric21 | Y46: metric22 | Z46: metric23 | AA46: metric24 | AB46: metric25 | AC46: metric26 | AD46: metric27
A47: Project 1 | B47: =SUM(C47:AD47) -> 0.628529316 | C47: =$C$44*ValueE(C5,$B$86,$B$87,$B$88,$B$89) -> 0.02504107129 | D47: =$D$44*ValueE(D5, $D$86,$D$87,$D$88,$D$89) -> 0.01394279015 | E47: =$E$44*ValuePL(E5,$E$86:$E$88,$F$86:$F$88) -> 0.03 | F47: =$F$44*ValuePL(F5,$G$86:$G$88,$H$86:$H$88) -> 0.03 | G47: =$G$44*ValuePL(G5,$I$86:$I$87,$J$86:$J$87) -> 0 | H47: =$H$44*((ValueE(H5,$L$86,$L$87,$L$88,$L$89)+ValueE(I5,$N$86,$N$87,$N$88,$N$89))/2) -> 0.03 | J47: =$J$44*ValuePL(J5, $O$86:$O$89,$P$86:$P$89) -> 0.02754545455 | K47: =$K$44*ValuePL(K5,$Q$86:$Q$89,$R$86:$R$89) -> 0.002 | L47: =$L$44*ValuePL(L5,$S$86:$S$89,$T$86:$T$89) -> 0 | M47: =$M$44*ValueE(M5,$V$86,$V$87,$V$88,$V$89) -> 0 | N47: =$N$44*ValuePL(N5,$W$86:$W$89,$X$86:$X$89) -> 0 | O47: =$O$44*ValueE(O5,$Z$86,$Z$87,$Z$88,$Z$89) -> 0 | P47: =$P$44*ValuePL(P5,$AA$86:$AA$88,$AB$86:$AB$89) -> 0 | Q47: =$Q$44*ValuePL(Q5,$AC$86:$AC$90,$AD$86:$AD$90) -> 0.04 | R47: =$R$44*ValuePL(R5,$AE$86:$AE$89,$AF$86:$AF$89) -> 0 | S47: =$S$44*ValuePL(S5,$AG$86:$AG$89,$AH$86:$AH$89) -> 0.04 | T47: =$T$44*ValuePL(T5,$AI$86:$AI$89,$AJ$86:$AJ$89) -> 0.05 | U47: =$U$44*ValuePL(U5,$AK$86:$AK$91,$AL$86:$AL$91) -> 0 | V47: =$V$44*ValuePL(V5,$AM$86:$AM$88,$AN$86:$AN$88) -> 0 | W47: =$W$44*ValuePL(W5,$AO$86:$AO$88,$AP$86:$AP$88) -> 0.05 | X47: =$X$44*ValuePL(X5,$AQ$86:$AQ$89,$AR$86:$AR$89) -> 0.04 | Y47: =$Y$44*ValuePL(Y5,$AS$86:$AS$89,$AT$86:$AT$89) -> 0.04 | Z47: =$Z$44*ValuePL(Z5,$AU$86:$AU$89,$AV$86:$AV$89) -> 0.05 | AA47: =$AA$44*ValuePL(AA5,$AW$86:$AW$88,$AX$86:$AX$88) -> 0.05 | AB47: =$AB$44*ValuePL(AB5,$AY$86:$AY$89,$AZ$86:$AZ$89) -> 0.04 | AC47: =$AC$44*ValuePL(AC5,$BA$86:$BA$88,$BB$86:$BB$88) -> 0.04 | AD47: =$AD$44*ValuePL(AD5,$BC$86:$BC$88,$BD$86:$BD$88) -> 0.03
A48: Project 2 | B48: =SUM(C48:AD48) -> 0.534248774 | C48: 0.01353567143 | D48: 0.02821310259 | E48: 0.015 | F48: 0 | G48: 0 | H48: 0 | J48: 0 | K48: 0 | L48: 0 | M48: 0 | N48: 0 | O48: 0.015 | P48: 0.0225 | Q48: 0 | R48: 0 | S48: 0.05 | T48: 0.05 | U48: 0 | V48: 0 | W48: =$W$44*ValuePL(W6,$AO$86:$AO$88,$AP$86:$AP$88) -> 0.05 | X48: 0.04 | Y48: =$Y$44*ValuePL(Y6,$AS$86:$AS$89,$AT$86:$AT$89) -> 0.04 | Z48: 0.05 | AA48: 0.05 | AB48: 0.04 | AC48: 0.04 | AD48: 0.03
A49: Project 3 | B49: 0.4589062433 | C49: 0.02394314074 | D49: 0.02821310259 | E49: 0.03 | F49: 0 | G49: 0 | H49: 0 | J49: 0 | K49: 0 | L49: 0 | M49: 0 | N49: 0 | O49: 0.01875 | P49: 0.0225 | Q49: 0 | R49: 0.02 | S49: 0 | T49: 0 | U49: 0 | V49: 0.0075 | W49: 0.05 | X49: 0.04 | Y49: 0.04 | Z49: 0.05 | AA49: 0.05 | AB49: 0.008 | AC49: 0.04 | AD49: 0.03
A50: Project 4 | B50: 0.3773808758 | C50: 0.005438085647 | D50: 0.01394279015 | E50: 0.03 | F50: 0 | G50: 0 | H50: 0 | J50: 0 | K50: 0 | L50: 0 | M50: 0 | N50: 0 | O50: 0.015 | P50: 0.0225 | Q50: 0 | R50: 0.004 | S50: 0.05 | T50: 0.05 | U50: 0.024 | V50: 0 | W50: 0.025 | X50: 0.04 | Y50: 0.04 | Z50: 0.01 | AA50: 0 | AB50: 0 | AC50: 0.04 | AD50: 0.0075
A51: Project 5 | B51: 0.3735898378 | C51: 0.01652015611 | D51: 0.007996954374 | E51: 0.03 | F51: 0 | G51: 0 | H51: 0 | J51: 0.01527272727 | K51: 0.0008 | L51: 0 | M51: 0 | N51: 0 | O51: 0 | P51: 0 | Q51: 0 | R51: 0.004 | S51: 0.05 | T51: 0.05 | U51: 0.024 | V51: 0.0075 | W51: 0 | X51: 0.04 | Y51: 0.04 | Z51: 0.04 | AA51: 0 | AB51: 0 | AC51: 0.04 | AD51: 0.0075
A52: Project 6 | B52: 0.2176254138 | C52: 0.02593998081 | D52: 0.0001854330084 | E52: 0.03 | F52: 0 | G52: 0 | H52: 0 | J52: 0.0012 | K52: 0.0008 | L52: 0 | M52: 0 | N52: 0 | O52: 0 | P52: 0 | Q52: 0 | R52: 0.004 | S52: 0 | T52: 0.05 | U52: 0.018 | V52: 0 | W52: 0 | X52: 0 | Y52: 0.04 | Z52: 0 | AA52: 0 | AB52: 0 | AC52: 0.04 | AD52: 0.0075
A53: Project 7 | B53: 0.5588316744 | C53: 0.02999913248 | D53: 0.02542345105 | E53: 0 | F53: 0.03 | G53: 0 | H53: 0 | J53: 0.03 | K53: 0.01345454545 | L53: 0.02 | M53: 0.02 | N53: 0.01345454545 | O53: 0.03 | P53: 0.0225 | Q53: 0 | R53: 0 | S53: 0.05 | T53: 0.05 | U53: 0 | V53: 0 | W53: 0.05 | X53: 0 | Y53: 0.008 | Z53: 0.05 | AA53: 0.05 | AB53: 0.036 | AC53: 0 | AD53: 0.03
A54: Project 8 | B54: 0.5265936679 | C54: 0.01353567143 | D54: 0.02542345105 | E54: 0.03 | F54: 0.015 | G54: 0.04 | H54: 0 | J54: 0.00168 | K54: 0.01672727273 | L54: 0 | M54: 0.02 | N54: 0.01672727273 | O54: 0 | P54: 0 | Q54: 0 | R54: 0.04 | S54: 0.01 | T54: 0.05 | U54: 0 | V54: 0 | W54: 0.05 | X54: 0.04 | Y54: 0.04 | Z54: 0.05 | AA54: 0.05 | AB54: 0 | AC54: 0.01 | AD54: 0.0075
A55: Project 9 | B55: 0.4583756362 | C55: 0.02504107129 | D55: 0.02369699371 | E55: 0.03 | F55: 0.015 | G55: 0 | H55: 0.007637571157 | J55: 0 | K55: 0 | L55: 0 | M55: 0 | N55: 0 | O55: 0 | P55: 0 | Q55: 0.03 | R55: 0 | S55: 0.05 | T55: 0.033 | U55: 0.006 | V55: 0 | W55: 0.05 | X55: 0.04 | Y55: 0.04 | Z55: 0.01 | AA55: 0.05 | AB55: 0.008 | AC55: 0.01 | AD55: 0.03
A56: Project 10 | B56: 0.4205 | C56: 0 | D56: 0 | E56: 0 | F56: 0 | G56: 0 | H56: 0 | J56: 0 | K56: 0 | L56: 0 | M56: 0 | N56: 0 | O56: 0.0225 | P56: 0.09 | Q56: 0.01 | R56: 0.02 | S56: 0.05 | T56: 0.033 | U56: 0.012 | V56: 0 | W56: 0 | X56: 0.03 | Y56: 0.04 | Z56: 0.05 | AA56: 0.025 | AB56: 0.008 | AC56: 0 | AD56: 0.03
A57: Project 11 | B57: 0.4880036657 | C57: 0 | D57: 0 | E57: 0 | F57: 0 | G57: 0 | H57: 0.001935483871 | J57: 0.01625454545 | K57: 0.01836363636 | L57: 0.01083636364 | M57: 0.02 | N57: 0.01836363636 | O57: 0.01125 | P57: 0.0225 | Q57: 0.01 | R57: 0 | S57: 0.05 | T57: 0.05 | U57: 0.012 | V57: 0.03 | W57: 0.05 | X57: 0.008 | Y57: 0.04 | Z57: 0.05 | AA57: 0.025 | AB57: 0.036 | AC57: 0 | AD57: 0.0075
A58: Project 12 | B58: 0.3815874073 | C58: 0.009890413604 | D58: 0.02369699371 | E58: 0.03 | F58: 0.015 | G58: 0 | H58: 0 | J58: 0 | K58: 0 | L58: 0 | M58: 0 | N58: 0 | O58: 0 | P58: 0 | Q58: 0 | R58: 0.004 | S58: 0.05 | T58: 0.05 | U58: 0.018 | V58: 0 | W58: 0.025 | X58: 0.008 | Y58: 0.04 | Z58: 0.01 | AA58: 0.05 | AB58: 0.008 | AC58: 0.04 | AD58: 0
A59: Project 13 | B59: 0.3054753234 | C59: 0 | D59: 0 | E59: 0 | F59: 0 | G59: 0 | H59: 0.0001707779886 | J59: 0.009872727273 | K59: 0.0008 | L59: 0.006581818182 | M59: 0.02 | N59: 0.0008 | O59: 0.02625 | P59: 0.0225 | Q59: 0.01 | R59: 0 | S59: 0.05 | T59: 0.05 | U59: 0 | V59: 0 | W59: 0.025 | X59: 0 | Y59: 0.008 | Z59: 0 | AA59: 0.05 | AB59: 0.008 | AC59: 0.01 | AD59: 0.0075
A60: Project 14 | B60: 0.4311611991 | C60: 0.02096420541 | D60: 0.02369699371 | E60: 0.015 | F60: 0.015 | G60: 0 | H60: 0 | J60: 0 | K60: 0 | L60: 0 | M60: 0 | N60: 0 | O60: 0.0225 | P60: 0.0225 | Q60: 0.01 | R60: 0 | S60: 0.05 | T60: 0.05 | U60: 0 | V60: 0 | W60: 0.025 | X60: 0.008 | Y60: 0.04 | Z60: 0.05 | AA60: 0.025 | AB60: 0.036 | AC60: 0.01 | AD60: 0.0075
A61: Project 15 | B61: 0.6097143178 | C61: 0.02969848993 | D61: 0.02140582792 | E61: 0.03 | F61: 0.015 | G61: 0.04 | H61: 0 | J61: 0.00276 | K61: 0.0012 | L61: 0.0012 | M61: 0.02 | N61: 0.0012 | O61: 0.00375 | P61: 0.09 | Q61: 0.02 | R61: 0 | S61: 0.04 | T61: 0.05 | U61: 0.018 | V61: 0.03 | W61: 0 | X61: 0.04 | Y61: 0.008 | Z61: 0.01 | AA61: 0.05 | AB61: 0.04 | AC61: 0.04 | AD61: 0.0075
A62: Project 16 | B62: 0.5433939394 | C62: 0 | D62: 0 | E62: 0 | F62: 0 | G62: 0 | H62: 0 | J62: 0.03 | K62: 0.01836363636 | L62: 0.02 | M62: 0.01666666667 | N62: 0.01836363636 | O62: 0 | P62: 0 | Q62: 0.03 | R62: 0 | S62: 0.05 | T62: 0.05 | U62: 0.03 | V62: 0 | W62: 0.05 | X62: 0.03 | Y62: 0.03 | Z62: 0.01 | AA62: 0.05 | AB62: 0.04 | AC62: 0.04 | AD62: 0.03
A63: Project 17 | B63: 0.4020919614 | C63: 0.009890413604 | D63: 0.02369699371 | E63: 0.03 | F63: 0.015 | G63: 0.04 | H63: 0.00880455408 | J63: 0 | K63: 0 | L63: 0 | M63: 0.02 | N63: 0.0012 | O63: 0 | P63: 0 | Q63: 0 | R63: 0 | S63: 0.05 | T63: 0.033 | U63: 0 | V63: 0 | W63: 0.05 | X63: 0.04 | Y63: 0.008 | Z63: 0 | AA63: 0.025 | AB63: 0 | AC63: 0.04 | AD63: 0.0075
A64: Project 18 | B64: 0.439426945 | C64: 0 | D64: 0 | E64: 0 | F64: 0 | G64: 0 | H64: 0.0004269449715 | J64: 0 | K64: 0 | L64: 0 | M64: 0 | N64: 0 | O64: 0.03 | P64: 0.0225 | Q64: 0.01 | R64: 0.04 | S64: 0.05 | T64: 0.05 | U64: 0.03 | V64: 0.0075 | W64: 0.05 | X64: 0.03 | Y64: 0.008 | Z64: 0.04 | AA64: 0.025 | AB64: 0.036 | AC64: 0.01 | AD64: 0
A65: Project 19 | B65: 0.4154950374 | C65: 0.02394314074 | D65: 0.008051896687 | E65: 0.015 | F65: 0.03 | G65: 0 | H65: 0 | J65: 0 | K65: 0 | L65: 0 | M65: 0 | N65: 0 | O65: 0.03 | P65: 0.09 | Q65: 0 | R65: 0 | S65: 0.04 | T65: 0.05 | U65: 0 | V65: 0 | W65: 0.025 | X65: 0.008 | Y65: 0.04 | Z65: 0.04 | AA65: 0 | AB65: 0.008 | AC65: 0 | AD65: 0.0075
A66: Project 20 | B66: 0.5588530095 | C66: 0.02504107129 | D66: 0.02369699371 | E66: 0.015 | F66: 0.03 | G66: 0 | H66: 0.006190702087 | J66: 0.02803636364 | K66: 0.01018181818 | L66: 0.01869090909 | M66: 0.01333333333 | N66: 0.01018181818 | O66: 0.03 | P66: 0.09 | Q66: 0.01 | R66: 0 | S66: 0.05 | T66: 0.05 | U66: 0.018 | V66: 0.03 | W66: 0.025 | X66: 0 | Y66: 0 | Z66: 0.01 | AA66: 0.05 | AB66: 0.008 | AC66: 0 | AD66: 0.0075
A67: Project 21 | B67: 0.4215 | C67: 0 | D67: 0 | E67: 0 | F67: 0 | G67: 0 | H67: 0 | J67: 0 | K67: 0 | L67: 0 | M67: 0 | N67: 0 | O67: 0.03 | P67: 0.09 | Q67: 0 | R67: 0.004 | S67: 0.05 | T67: 0.05 | U67: 0.03 | V67: 0.0075 | W67: 0 | X67: 0.03 | Y67: 0.04 | Z67: 0.01 | AA67: 0 | AB67: 0.04 | AC67: 0.01 | AD67: 0.03
A68: Project 22 | B68: 0.4444511385 | C68: 0 | D68: 0 | E68: 0 | F68: 0 | G68: 0 | H68: 0.00220113852 | J68: 0 | K68: 0 | L68: 0 | M68: 0 | N68: 0 | O68: 0.00375 | P68: 0.09 | Q68: 0.04 | R68: 0.02 | S68: 0.04 | T68: 0.05 | U68: 0.03 | V68: 0 | W68: 0.025 | X68: 0.03 | Y68: 0.008 | Z68: 0 | AA68: 0.05 | AB68: 0.008 | AC68: 0.04 | AD68: 0.0075
A69: Project 23 | B69: 0.3789645223 | C69: 0.02504107129 | D69: 0.02542345105 | E69: 0.03 | F69: 0 | G69: 0 | H69: 0 | J69: 0 | K69: 0 | L69: 0 | M69: 0 | N69: 0 | O69: 0 | P69: 0 | Q69: 0.03 | R69: 0 | S69: 0.05 | T69: 0.05 | U69: 0.03 | V69: 0 | W69: 0.05 | X69: 0.008 | Y69: 0.03 | Z69: 0.01 | AA69: 0.025 | AB69: 0.008 | AC69: 0 | AD69: 0.0075
A70: Project 24 | B70: 0.3789064356 | C70: 0.0189636455 | D70: 0.01394279015 | E70: 0.03 | F70: 0 | G70: 0 | H70: 0 | J70: 0 | K70: 0 | L70: 0 | M70: 0 | N70: 0 | O70: 0 | P70: 0 | Q70: 0 | R70: 0 | S70: 0.05 | T70: 0.05 | U70: 0.03 | V70: 0 | W70: 0 | X70: 0.04 | Y70: 0.008 | Z70: 0.05 | AA70: 0.05 | AB70: 0.008 | AC70: 0 | AD70: 0.03
A71: Project 25 | B71: 0.5325413724 | C71: 0.02504107129 | D71: 0.02542345105 | E71: 0.03 | F71: 0 | G71: 0 | H71: 0.01857685009 | J71: 0 | K71: 0 | L71: 0 | M71: 0 | N71: 0 | O71: 0.03 | P71: 0.0225 | Q71: 0.02 | R71: 0.02 | S71: 0.05 | T71: 0.05 | U71: 0 | V71: 0 | W71: 0.05 | X71: 0.008 | Y71: 0.04 | Z71: 0.04 | AA71: 0.025 | AB71: 0.008 | AC71: 0.04 | AD71: 0.03
A72: Project 26 | B72: 0.4294222969 | C72: 0.02899884584 | D72: 0.02542345105 | E72: 0.03 | F72: 0.015 | G72: 0 | H72: 0 | J72: 0 | K72: 0 | L72: 0 | M72: 0 | N72: 0 | O72: 0 | P72: 0 | Q72: 0.03 | R72: 0 | S72: 0.05 | T72: 0.05 | U72: 0.024 | V72: 0 | W72: 0.05 | X72: 0.008 | Y72: 0 | Z72: 0.04 | AA72: 0 | AB72: 0.008 | AC72: 0.04 | AD72: 0.03
A73: Project 27 | B73: 0.3409427901 | C73: 0 | D73: 0.01394279015 | E73: 0.03 | F73: 0 | G73: 0 | H73: 0 | J73: 0 | K73: 0 | L73: 0.02 | M73: 0 | N73: 0.002 | O73: 0 | P73: 0 | Q73: 0.02 | R73: 0.02 | S73: 0.05 | T73: 0.05 | U73: 0.03 | V73: 0 | W73: 0.025 | X73: 0.03 | Y73: 0.04 | Z73: 0.01 | AA73: 0 | AB73: 0 | AC73: 0 | AD73: 0
A74: Project 28 | B74: 0.4936451282 | C74: 0.01353567143 | D74: 0.01394279015 | E74: 0.03 | F74: 0 | G74: 0.04 | H74: 0 | J74: 0 | K74: 0 | L74: 0 | M74: 0.006666666667 | N74: 0.002 | O74: 0 | P74: 0 | Q74: 0.04 | R74: 0 | S74: 0.05 | T74: 0.05 | U74: 0.024 | V74: 0 | W74: 0.05 | X74: 0.04 | Y74: 0.04 | Z74: 0.01 | AA74: 0 | AB74: 0.036 | AC74: 0.04 | AD74: 0.0075
A75: Project 29 | B75: 0.4451559901 | C75: 0.02504107129 | D75: 0.02140582792 | E75: 0.03 | F75: 0.015 | G75: 0 | H75: 0 | J75: 0.0018 | K75: 0.01345454545 | L75: 0 | M75: 0.02 | N75: 0.01345454545 | O75: 0 | P75: 0 | Q75: 0.01 | R75: 0 | S75: 0.05 | T75: 0.05 | U75: 0.024 | V75: 0 | W75: 0.05 | X75: 0.008 | Y75: 0 | Z75: 0.04 | AA75: 0.025 | AB75: 0.008 | AC75: 0.01 | AD75: 0.03
A76: Project 30 | B76: 0.2833493521 | C76: 0.02995923435 | D76: 0.02542345105 | E76: 0.03 | F76: 0 | G76: 0 | H76: 0 | J76: 0 | K76: 0 | L76: 0 | M76: 0.006666666667 | N76: 0.0008 | O76: 0 | P76: 0 | Q76: 0 | R76: 0 | S76: 0.01 | T76: 0.0165 | U76: 0 | V76: 0 | W76: 0 | X76: 0.04 | Y76: 0.008 | Z76: 0.04 | AA76: 0 | AB76: 0.036 | AC76: 0.04 | AD76: 0
A77: Project 31 | B77: 0.3569466375 | C77: 0.01652015611 | D77: 0.02542345105 | E77: 0.015 | F77: 0 | G77: 0 | H77: 0 | J77: 0.02263636364 | K77: 0.0016 | L77: 0 | M77: 0.006666666667 | N77: 0.0016 | O77: 0 | P77: 0 | Q77: 0.02 | R77: 0 | S77: 0.05 | T77: 0.033 | U77: 0.018 | V77: 0 | W77: 0.025 | X77: 0 | Y77: 0.008 | Z77: 0.01 | AA77: 0.05 | AB77: 0.036 | AC77: 0.01 | AD77: 0.0075
A78: Project 32 | B78: 0.4907237533 | C78: 0.0189636455 | D78: 0.008051896687 | E78: 0.03 | F78: 0.03 | G78: 0.04 | H78: 0.001935483871 | J78: 0.01036363636 | K78: 0.02 | L78: 0.006909090909 | M78: 0.02 | N78: 0.02 | O78: 0 | P78: 0 | Q78: 0.02 | R78: 0.04 | S78: 0.05 | T78: 0 | U78: 0.024 | V78: 0 | W78: 0 | X78: 0.03 | Y78: 0.008 | Z78: 0.04 | AA78: 0.025 | AB78: 0 | AC78: 0.04 | AD78: 0.0075
A79: Project 33 | B79: 0.4065991919 | C79: 0.02817574081 | D79: 0.02542345105 | E79: 0.03 | F79: 0.015 | G79: 0 | H79: 0 | J79: 0 | K79: 0 | L79: 0 | M79: 0.01 | N79: 0 | O79: 0 | P79: 0 | Q79: 0.02 | R79: 0 | S79: 0.05 | T79: 0.033 | U79: 0 | V79: 0 | W79: 0.025 | X79: 0.04 | Y79: 0 | Z79: 0.04 | AA79: 0.05 | AB79: 0.04 | AC79: 0 | AD79: 0
A80: Project 34 | B80: 0.4768980507 | C80: 0 | D80: 0 | E80: 0 | F80: 0 | G80: 0 | H80: 0.0001707779886 | J80: 0.03 | K80: 0.01836363636 | L80: 0.02 | M80: 0.02 | N80: 0.01836363636 | O80: 0 | P80: 0 | Q80: 0.02 | R80: 0 | S80: 0.05 | T80: 0.05 | U80: 0.024 | V80: 0 | W80: 0.05 | X80: 0.04 | Y80: 0.04 | Z80: 0 | AA80: 0.05 | AB80: 0.036 | AC80: 0.01 | AD80: 0
A81: Project 35 | B81: 0.453058469 | C81: 0.02394314074 | D81: 0.01828199494 | E81: 0.015 | F81: 0.015 | G81: 0.04 | H81: 0 | J81: 0 | K81: 0 | L81: 0.02 | M81: 0.01333333333 | N81: 0.002 | O81: 0.03 | P81: 0 | Q81: 0 | R81: 0 | S81: 0.05 | T81: 0.05 | U81: 0.018 | V81: 0 | W81: 0.05 | X81: 0.03 | Y81: 0 | Z81: 0.01 | AA81: 0.05 | AB81: 0 | AC81: 0.01 | AD81: 0.0075
A83: Utility Functions
A84: metric 1 | C84: metric 2 | E84: metric 3 | G84: metric 4 | I84: metric 5 | K84: metric 6a | M84: metric 6b | O84: metric 7 | Q84: metric 8 | S84: metric 9 | U84: metric 10 | W84: metric 11 | Y84: metric 12 | AA84: metric 13 | AC84: metric 14 | AE84: metric 15 | AG84: metric 16 | AI84: metric 17 | AK84: metric 18 | AM84: metric 19 | AO84: metric 20 | AQ84: metric 21 | AS84: metric 22 | AU84: metric 23 | AW84: metric 24 | AY84: metric 25 | BA84: metric 26 | BC84: metric 27
A85: Taxa (x) | B85: f(x) | C85: Spatial (x) | D85: f(x) | E85: Uncert (x) | F85: y | G85: Freq (x) | H85: y | I85: ARM (x) | J85: y | K85: Trend (x) | L85: f(x) | M85: SumCS (x) | N85: f(x) | O85: PopSpatial (x) | P85: y | Q85: Poptime (x) | R85: y | S85: HabSpat (x) | T85: y | U85: HabQual (x) | V85: f(x) | W85: HabTime (x) | X85: y | Y85: EPTaxa (x) | Z85: f(x) | AA85: EPUncert (x) | AB85: y | AC85: Share (x) | AD85: y | AE85: Impacts (x) | AF85: y | AG85: ExPriorities (x) | AH85: y | AI85: Partners (x) | AJ85: y | AK85: Leverage (x) | AL85: y | AM85: Alignment (x) | AN85: y | AO85: Objectives (x) | AP85: y | AQ85: Response (x) | AR85: y | AS85: Taxa (x) | AT85: y | AU85: Design (x) | AV85: y | AW85: Stats (x) | AX85: y | AY85: Data Plan (x) | AZ85: y | BA85: Budget (x) | BB85: y | BC85: Timeline (x) | BD85: y
A86: Low | B86: 0 | C86: Low | D86: 0 | E86: 0 | F86: 0 | G86: 0 | H86: 0 | I86: 0 | J86: 0 | K86: Low | L86: 0 | M86: Low | N86: 0 | O86: 0 | P86: 0 | Q86: 0 | R86: 0 | S86: 0 | T86: 0 | U86: Low | V86: 2 | W86: 0 | X86: 0 | Y86: Low | Z86: 0 | AA86: 0 | AB86: 0 | AC86: 0 | AD86: 0 | AE86: 0 | AF86: 0 | AG86: 0 | AH86: 0 | AI86: 0 | AJ86: 0 | AK86: 0 | AL86: 0 | AM86: 0 | AN86: 0 | AO86: 0 | AP86: 0 | AQ86: 0 | AR86: 0 | AS86: 0 | AT86: 0 | AU86: 0 | AV86: 0 | AW86: 0 | AX86: 0 | AY86: 0 | AZ86: 0 | BA86: 0 | BB86: 0 | BC86: 0 | BD86: 0
A87: High | B87: 67 | C87: High | D87: 100 | E87: 1 | F87: 0.5 | G87: 1 | H87: 0.5 | I87: 1 | J87: 1 | K87: High | L87: 186 | M87: High | N87: 1054 | O87: 25 | P87: 0.1 | Q87: 5 | R87: 0.1 | S87: 20 | T87: 0 | U87: High | V87: 8 | W87: 5 | X87: 0.1 | Y87: High | Z87: 8 | AA87: 1 | AB87: 0.25 | AC87: 1 | AD87: 0.25 | AE87: 1 | AF87: 0.1 | AG87: 1 | AH87: 0.2 | AI87: 1 | AJ87: 0.33 | AK87: 1 | AL87: 0.2 | AM87: 1 | AN87: 0.25 | AO87: 1 | AP87: 0.5 | AQ87: 1 | AR87: 0.2 | AS87: 1 | AT87: 0.2 | AU87: 1 | AV87: 0.2 | AW87: 1 | AX87: 0.5 | AY87: 1 | AZ87: 0.2 | BA87: 1 | BB87: 0.25 | BC87: 1 | BD87: 0.25
A88: Mono | B88: increasing | C88: Mono | D88: increasing | E88: 2 | F88: 1 | G88: 2 | H88: 1 | K88: Mono | L88: increasing | M88: Mono | N88: increasing | O88: 80 | P88: 1 | Q88: 16 | R88: 1 | S88: 25 | T88: 0.1 | U88: Mono | V88: increasing | W88: 16 | X88: 1 | Y88: Mono | Z88: increasing | AA88: 2 | AB88: 1 | AC88: 2 | AD88: 0.5 | AE88: 2 | AF88: 0.5 | AG88: 2 | AH88: 0.8 | AI88: 2 | AJ88: 0.66 | AK88: 2 | AL88: 0.4 | AM88: 2 | AN88: 1 | AO88: 2 | AP88: 1 | AQ88: 2 | AR88: 0.75 | AS88: 2 | AT88: 0.75 | AU88: 2 | AV88: 0.8 | AW88: 2 | AX88: 1 | AY88: 2 | AZ88: 0.9 | BA88: 2 | BB88: 1 | BC88: 2 | BD88: 1
A89: Rho | B89: 5 | C89: Rho | D89: 10 | K89: Rho | L89: infinity | M89: Rho | N89: infinity | O89: 100 | P89: 1 | Q89: 20 | R89: 1 | S89: 80 | T89: 1 | U89: Rho | V89: infinity | W89: 20 | X89: 1 | Y89: Rho | Z89: infinity | AC89: 3 | AD89: 0.75 | AE89: 3 | AF89: 1 | AG89: 3 | AH89: 1 | AI89: 3 | AJ89: 1 | AK89: 3 | AL89: 0.6 | AQ89: 3 | AR89: 1 | AS89: 3 | AT89: 1 | AU89: 3 | AV89: 1 | AY89: 3 | AZ89: 1
S90: 100 | T90: 1 | AC90: 4 | AD90: 1 | AK90: 4 | AL90: 0.8
AK91: 5 | AL91: 1

Sheet Step 2 Instructions
A2: Step 1 - Fill in the cost, and any constraints in the table from row 5 down to a maximum of row 101 (unused rows are not a problem, leave blank) | J2: Step 1B - How to Code Constraints - If you are coding a 'does a proposal do X' constraint, it should be a 0 or a 1 (e.g. Does the project take place in Texas, 1 for yes, 0 for no).
A8: Step 2 - Set your constraints (Gray Boxes). These can be maximums or minimums or equalities when we code them, but here it is just the numeric value. You will not set a constraint for Benefit (utility), as Solver will always maximize benefit.
J9: Step 3 - Open up Solver. -> Data Tab at the Top -> All the way over on the right -> Click on "Solver"
A19: Step 4 - See Below Image. These are the minimum settings. This will maximize benefits (C3) by turning projects on and off (the P column). It will turn them on and off with 1s or 0s (P= binary). An additional constraint indicates that total cost of the selected projects (B3) must be less than or equal to the available budget (B4). | J19: Step 5 - Add additional Constraints. Do this by pressing the add button, Then select the cell in row 4 with the constraint, then selecting the appropraite equality, either >=, = or <=, then select the cell in row 3 with the total. Click ok. Repeat for all constraints
J32: Step 6 - Click "Solve" Excel will then find the optimal solution. This make take several minutes. Be patient. This window will pop up at the end. Click OK
J48: How to interpret results. Selected projects will have 1s in Column P and their information will show up in columns Q,R and S. The actual total cost will be in B3, and the benefit (utility) in C3.

Sheet Step 2 Portfolio Analysis
A1: Proposal Name | B1: Cost | C1: Monitoring Benefit | D1: Constraints | J1: Included in Portfolio | K1: Proposal Name | L1: Cost | M1: Monitoring Benefit | O1: DO NOT CHANGE ANY VALUES EXCEPT IN CELLS COLORED IN GREY
D2: TX | E2: LA | F2: MS | G2: AL | H2: FL | I2: sea
A3: Total | B3: =SUMPRODUCT(J5:J101,B5:B101) -> 3985000 | C3: =SUMPRODUCT(C5:C101,J5:J101) -> 4.404719042 | D3: =SUMPRODUCT(D5:D101,$J$5:$J$101) -> 9 | E3: =SUMPRODUCT(E5:E101,$J$5:$J$101) -> 9 | F3: 10 | G3: 11 | H3: 11 | I3: 2
A4: Portfolio Constraints | B4: 4000000 | C4: ~~~ | D4: 0 | E4: 0 | F4: 0 | G4: 0 | H4: 11 | I4: 2
A5: ='Step 1 Project Scores'!A5 -> Project 1 | B5: 700000 | C5: ='Step 1 Project Scores'!B47 -> 0.628529316 | D5: 1 | E5: 1 | F5: 1 | G5: 1 | H5: 1 | I5: 0 | J5: 0 | K5: =IF($J5=1,A5,"") -> 
A6: ='Step 1 Project Scores'!A6 -> Project 2 | B6: 5400000 | C6: ='Step 1 Project Scores'!B48 -> 0.534248774 | D6: 0 | E6: 0 | F6: 1 | G6: 1 | H6: 0 | I6: 1 | J6: 0
A7: ='Step 1 Project Scores'!A7 -> Project 3 | B7: 250000 | C7: ='Step 1 Project Scores'!B49 -> 0.4589062433 | D7: 0 | E7: 1 | F7: 0 | G7: 0 | H7: 0 | I7: 1 | J7: 0
A8: ='Step 1 Project Scores'!A8 -> Project 4 | B8: 150000 | C8: ='Step 1 Project Scores'!B50 -> 0.3773808758 | D8: 0 | E8: 1 | F8: 0 | G8: 0 | H8: 0 | I8: 0 | J8: 0
A9: ='Step 1 Project Scores'!A9 -> Project 5 | B9: 220000 | C9: ='Step 1 Project Scores'!B51 -> 0.3735898378 | D9: 1 | E9: 1 | F9: 1 | G9: 0 | H9: 0 | I9: 0 | J9: 0
A10: ='Step 1 Project Scores'!A10 -> Project 6 | B10: 110000 | C10: ='Step 1 Project Scores'!B52 -> 0.2176254138 | D10: 0 | E10: 0 | F10: 0 | G10: 1 | H10: 1 | I10: 0 | J10: 1 | K10: Project 6 | L10: 110000 | M10: 0.2176254138
A11: ='Step 1 Project Scores'!A11 -> Project 7 | B11: 1000000 | C11: ='Step 1 Project Scores'!B53 -> 0.5588316744 | D11: 1 | E11: 1 | F11: 1 | G11: 1 | H11: 1 | I11: 0 | J11: 0
A12: ='Step 1 Project Scores'!A12 -> Project 8 | B12: 5000000 | C12: ='Step 1 Project Scores'!B54 -> 0.5265936679 | D12: 1 | E12: 1 | F12: 1 | G12: 1 | H12: 1 | I12: 0 | J12: 0
A13: ='Step 1 Project Scores'!A13 -> Project 9 | B13: 25000 | C13: ='Step 1 Project Scores'!B55 -> 0.4583756362 | D13: 1 | E13: 1 | F13: 1 | G13: 1 | H13: 1 | I13: 0 | J13: 1 | K13: Project 9 | L13: 25000 | M13: 0.4583756362
A14: ='Step 1 Project Scores'!A14 -> Project 10 | B14: 900000 | C14: ='Step 1 Project Scores'!B56 -> 0.4205 | D14: 0 | E14: 0 | F14: 0 | G14: 1 | H14: 0 | I14: 0 | J14: 0
A15: ='Step 1 Project Scores'!A15 -> Project 11 | B15: 1500000 | C15: ='Step 1 Project Scores'!B57 -> 0.4880036657 | D15: 1 | E15: 1 | F15: 1 | G15: 1 | H15: 1 | I15: 0 | J15: 0
A16: ='Step 1 Project Scores'!A16 -> Project 12 | B16: 100000 | C16: ='Step 1 Project Scores'!B58 -> 0.3815874073 | D16: 1 | E16: 0 | F16: 0 | G16: 0 | H16: 0 | I16: 0 | J16: 0
A17: ='Step 1 Project Scores'!A17 -> Project 13 | B17: 250000 | C17: ='Step 1 Project Scores'!B59 -> 0.3054753234 | D17: 1 | E17: 1 | F17: 1 | G17: 1 | H17: 1 | I17: 0 | J17: 1 | K17: Project 13 | L17: 250000 | M17: 0.3054753234
A18: ='Step 1 Project Scores'!A18 -> Project 14 | B18: 500000 | C18: ='Step 1 Project Scores'!B60 -> 0.4311611991 | D18: 0 | E18: 1 | F18: 0 | G18: 0 | H18: 0 | I18: 0 | J18: 0
A19: ='Step 1 Project Scores'!A19 -> Project 15 | B19: 800000 | C19: ='Step 1 Project Scores'!B61 -> 0.6097143178 | D19: 0 | E19: 1 | F19: 1 | G19: 0 | H19: 0 | I19: 0 | J19: 0
A20: ='Step 1 Project Scores'!A20 -> Project 16 | B20: 2000000 | C20: ='Step 1 Project Scores'!B62 -> 0.5433939394 | D20: 0 | E20: 0 | F20: 0 | G20: 1 | H20: 1 | I20: 0 | J20: 0
A21: ='Step 1 Project Scores'!A21 -> Project 17 | B21: 500000 | C21: ='Step 1 Project Scores'!B63 -> 0.4020919614 | D21: 0 | E21: 0 | F21: 1 | G21: 1 | H21: 0 | I21: 0 | J21: 0
A22: ='Step 1 Project Scores'!A22 -> Project 18 | B22: 300000 | C22: ='Step 1 Project Scores'!B64 -> 0.439426945 | D22: 1 | E22: 1 | F22: 1 | G22: 1 | H22: 1 | I22: 0 | J22: 1 | K22: Project 18 | L22: 300000 | M22: 0.439426945
A23: ='Step 1 Project Scores'!A23 -> Project 19 | B23: 750000 | C23: ='Step 1 Project Scores'!B65 -> 0.4154950374 | D23: 1 | E23: 1 | F23: 1 | G23: 1 | H23: 1 | I23: 0 | J23: 0
A24: ='Step 1 Project Scores'!A24 -> Project 20 | B24: 1500000 | C24: ='Step 1 Project Scores'!B66 -> 0.5588530095 | D24: 1 | E24: 1 | F24: 1 | G24: 1 | H24: 1 | I24: 0 | J24: 0
A25: ='Step 1 Project Scores'!A25 -> Project 21 | B25: 900000 | C25: ='Step 1 Project Scores'!B67 -> 0.4215 | D25: 1 | E25: 1 | F25: 1 | G25: 1 | H25: 1 | I25: 1 | J25: 1 | K25: Project 21 | L25: 900000 | M25: 0.4215
A26: ='Step 1 Project Scores'!A26 -> Project 22 | B26: 750000 | C26: ='Step 1 Project Scores'!B68 -> 0.4444511385 | D26: 1 | E26: 1 | F26: 1 | G26: 1 | H26: 1 | I26: 1 | J26: 1 | K26: Project 22 | L26: 750000 | M26: 0.4444511385
A27: ='Step 1 Project Scores'!A27 -> Project 23 | B27: 1000000 | C27: ='Step 1 Project Scores'!B69 -> 0.3789645223 | D27: 1 | E27: 1 | F27: 1 | G27: 1 | H27: 1 | I27: 0 | J27: 0
A28: ='Step 1 Project Scores'!A28 -> Project 24 | B28: 150000 | C28: ='Step 1 Project Scores'!B70 -> 0.3789064356 | D28: 1 | E28: 1 | F28: 1 | G28: 1 | H28: 1 | I28: 0 | J28: 1 | K28: Project 24 | L28: 150000 | M28: 0.3789064356
A29: ='Step 1 Project Scores'!A29 -> Project 25 | B29: 250000 | C29: ='Step 1 Project Scores'!B71 -> 0.5325413724 | D29: 1 | E29: 1 | F29: 1 | G29: 1 | H29: 1 | I29: 0 | J29: 1 | K29: Project 25 | L29: 250000 | M29: 0.5325413724
A30: ='Step 1 Project Scores'!A30 -> Project 26 | B30: 500000 | C30: ='Step 1 Project Scores'!B72 -> 0.4294222969 | D30: 1 | E30: 1 | F30: 1 | G30: 1 | H30: 1 | I30: 0 | J30: 1 | K30: Project 26 | L30: 500000 | M30: 0.4294222969
A31: ='Step 1 Project Scores'!A31 -> Project 27 | B31: 1200000 | C31: ='Step 1 Project Scores'!B73 -> 0.3409427901 | D31: 1 | E31: 1 | F31: 1 | G31: 0 | H31: 0 | I31: 0 | J31: 0
A32: ='Step 1 Project Scores'!A32 -> Project 28 | B32: 500000 | C32: ='Step 1 Project Scores'!B74 -> 0.4936451282 | D32: 0 | E32: 0 | F32: 1 | G32: 1 | H32: 1 | I32: 0 | J32: 1 | K32: Project 28 | L32: 500000 | M32: 0.4936451282
A33: ='Step 1 Project Scores'!A33 -> Project 29 | B33: 2000000 | C33: ='Step 1 Project Scores'!B75 -> 0.4451559901 | D33: 1 | E33: 1 | F33: 1 | G33: 1 | H33: 1 | I33: 0 | J33: 0
A34: ='Step 1 Project Scores'!A34 -> Project 30 | B34: 250000 | C34: ='Step 1 Project Scores'!B76 -> 0.2833493521 | D34: 1 | E34: 1 | F34: 1 | G34: 1 | H34: 1 | I34: 0 | J34: 1 | K34: Project 30 | L34: 250000 | M34: 0.2833493521
A35: ='Step 1 Project Scores'!A35 -> Project 31 | B35: 650000 | C35: ='Step 1 Project Scores'!B77 -> 0.3569466375 | D35: 0 | E35: 0 | F35: 1 | G35: 0 | H35: 0 | I35: 0 | J35: 0
A36: ='Step 1 Project Scores'!A36 -> Project 32 | B36: 200000 | C36: ='Step 1 Project Scores'!B78 -> 0.4907237533 | D36: 0 | E36: 1 | F36: 0 | G36: 0 | H36: 0 | I36: 0 | J36: 0
A37: ='Step 1 Project Scores'!A37 -> Project 33 | B37: 400000 | C37: ='Step 1 Project Scores'!B79 -> 0.4065991919 | D37: 0 | E37: 0 | F37: 1 | G37: 0 | H37: 0 | I37: 1 | J37: 0 | K37: =IF($J37=1,A37,"") -> 
A38: ='Step 1 Project Scores'!A38 -> Project 34 | B38: 900000 | C38: ='Step 1 Project Scores'!B80 -> 0.4768980507 | D38: 0 | E38: 1 | F38: 0 | G38: 0 | H38: 0 | I38: 0 | J38: 0
A39: ='Step 1 Project Scores'!A39 -> Project 35 | B39: 900000 | C39: ='Step 1 Project Scores'!B81 -> 0.453058469 | D39: 0 | E39: 0 | F39: 1 | G39: 0 | H39: 1 | I39: 0 | J39: 0
J40: 0
J41: 0
J42: 0
J43: 0
J44: 0
J45: 0
J46: 0
J47: 0
J48: 0
J49: 0
J50: 0
J51: 0
J52: 0
J53: 0
J54: 0
J55: 0
J56: 0
J57: 0
J58: 0
J59: 0
J60: 0
J61: 0
J62: 0
J63: 0
J64: 0
J65: 0
J66: 0
J67: 0
J68: 0
J69: 0 | K69: =IF($J69=1,A69,"") -> 
J70: 0
J71: 0
J72: 0
J73: 0
J74: 0
J75: 0
J76: 0
J77: 0
J78: 0
J79: 0
J80: 0
J81: 0
J82: 0
J83: 0
J84: 0
J85: 0
J86: 0
J87: 0
J88: 0
J89: 0
J90: 0
J91: 0
J92: 0
J93: 0
J94: 0
J95: 0
J96: 0
J97: 0
J98: 0
J99: 0
J100: 0
J101: 0
